bitfinex/quotes_BTCUSD_20240826
["timestamp","ask_amount","ask_price","bid_price","bid_amount"]
[1724694116196,1.84501919,63650.0,63649.0,0.001]
[1724694116628,2.15923719,63650.0,63649.0,0.001]
[1724694116837,2.42931074,63650.0,63649.0,0.001]
[1724694117046,0.00067813,63643.0,63628.0,0.0841]
[1724694117267,0.157178,63622.0,63621.0,0.08442187]
[1724694117480,0.94206801,63622.0,63621.0,0.08442187]
[1724694117687,1.26672825,63622.0,63621.0,0.08442187]
[1724694117889,1.26672825,63622.0,63621.0,0.00032187]
[1724694118358,1.100316,63618.0,63617.0,0.0841]
[1724694118582,0.471571,63617.0,63616.0,0.00032187]
[1724694118785,0.471571,63617.0,63613.0,0.0841]
[1724694118786,0.471594,63614.0,63613.0,0.08442187]
[1724694118994,1.25656401,63614.0,63610.0,0.0653]
[1724694119228,1.25656401,63614.0,63601.0,0.166304]
[1724694119229,0.786015,63612.0,63611.0,0.00132247]
[1724694119449,0.94219301,63612.0,63611.0,0.00032247]
[1724694119863,0.95270901,63612.0,63611.0,0.00032247]
[1724694120295,0.63830301,63612.0,63611.0,0.00032247]
[1724694120712,0.63830301,63612.0,63611.0,0.08042247]
[1724694120713,0.17369401,63612.0,63611.0,0.08042247]
[1724694120946,0.17369401,63612.0,63611.0,0.14962247]
[1724694121155,0.017516,63612.0,63611.0,0.93564947]
[1724694121384,0.017516,63612.0,63611.0,1.25006047]
[1724694121602,0.32038101,63612.0,63611.0,0.08042247]
[1724694121818,0.16317801,63612.0,63611.0,0.08042247]
[1724694122043,0.17359644,63612.0,63611.0,0.08042247]
[1724694122884,0.16659644,63612.0,63611.0,0.08042247]
[1724694123327,0.63820544,63612.0,63611.0,0.08142247]
[1724694123538,0.63820544,63612.0,63611.0,0.08042247]
[1724694123797,1.26701744,63612.0,63611.0,6e-07]
[1724694124215,1.58142344,63612.0,63611.0,6e-07]
[1724694124427,1.58123424,63612.0,63611.0,6e-07]
[1724694124642,1.58523424,63612.0,63611.0,6e-07]
[1724694125112,1.58923424,63612.0,63611.0,6e-07]
[1724694125313,1.67013424,63612.0,63611.0,6e-07]
[1724694125563,1.66613424,63612.0,63611.0,6e-07]
[1724694125762,1.67713424,63612.0,63611.0,6e-07]
[1724694125975,1.67313424,63612.0,63611.0,6e-07]
[1724694126193,1.68013424,63612.0,63611.0,6e-07]
[1724694126404,1.69681237,63612.0,63611.0,6e-07]
[1724694126834,1.70781237,63612.0,63611.0,6e-07]
[1724694127095,1.59223424,63612.0,63611.0,6e-07]
[1724694127521,1.60623424,63612.0,63611.0,6e-07]
[1724694127766,0.19140724,63612.0,63611.0,0.15262247]
[1724694127971,0.34861024,63612.0,63611.0,0.15362247]
[1724694128199,0.19140724,63612.0,63611.0,0.15262247]
[1724694128611,0.18040724,63612.0,63611.0,0.15262247]
[1724694129029,0.18015821,63612.0,63611.0,0.15262247]
[1724694129457,0.19215821,63612.0,63611.0,0.15262247]
[1724694129668,0.17815821,63612.0,63611.0,0.15262247]
[1724694129873,0.17815821,63612.0,63611.0,0.30982747]
[1724694130077,0.18915821,63612.0,63611.0,0.30982747]
[1724694130298,0.17715821,63612.0,63611.0,0.15262247]
[1724694130492,0.64876721,63612.0,63611.0,0.15362247]
[1724694130710,0.64676721,63612.0,63611.0,0.15362247]
[1724694130921,0.96117321,63612.0,63611.0,0.15362247]
[1724694131130,0.96117321,63612.0,63611.0,0.15262247]
[1724694131402,0.17515821,63612.0,63611.0,0.30982747]
[1724694131855,0.17515821,63612.0,63611.0,0.15262247]
[1724694132070,0.18315821,63612.0,63611.0,0.15262247]
[1724694132503,0.18315821,63612.0,63611.0,0.62423847]
[1724694133127,0.17273978,63612.0,63611.0,0.62423847]
[1724694133585,0.18289972,63612.0,63611.0,0.62423847]
[1724694134007,0.17273978,63612.0,63611.0,0.62423847]
[1724694134247,0.18289972,63612.0,63611.0,0.62423847]
[1724694134473,0.18289972,63612.0,63611.0,0.30982747]
[1724694134692,0.18289972,63612.0,63611.0,0.62423847]
[1724694135133,0.16373978,63612.0,63611.0,0.62423847]
[1724694135372,0.17389972,63612.0,63611.0,0.62423847]
[1724694135585,0.17089972,63612.0,63611.0,0.30982747]
[1724694136025,0.17489972,63612.0,63611.0,0.15262247]
[1724694136684,0.17489972,63612.0,63611.0,0.30982747]
[1724694138185,0.17489972,63612.0,63611.0,0.15262247]
[1724694138433,0.17489972,63612.0,63611.0,0.30982747]
[1724694140051,0.17489972,63612.0,63611.0,0.15262247]
[1724694140458,0.17489972,63612.0,63611.0,0.30982747]
[1724694141362,0.01915994,63612.0,63611.0,0.94179329]
[1724694141570,0.009,63612.0,63611.0,1.25306047]
[1724694142220,0.004,63612.0,63611.0,1.25306047]
[1724694142645,0.004,63612.0,63611.0,1.56747147]
[1724694142646,0.005,63612.0,63611.0,1.56747147]
[1724694143222,0.004,63612.0,63611.0,1.56747147]
[1724694143417,0.46876099,63631.0,63611.0,0.38353347]
[1724694143614,0.62591699,63631.0,63630.0,0.15262187]
[1724694143971,0.471468,63631.0,63630.0,0.15262187]
[1724694144679,0.257138,63638.0,63637.0,0.00032187]
[1724694144992,0.72759701,63638.0,63637.0,0.00032187]
[1724694145396,0.15617801,63638.0,63637.0,0.55334487]
[1724694145623,0.15617801,63638.0,63637.0,0.93572687]
[1724694145825,0.15617801,63638.0,63637.0,0.62144487]
[1724694146403,0.16917801,63638.0,63637.0,0.62144487]
[1724694146606,0.18117801,63638.0,63637.0,0.15002187]
[1724694146986,0.16817801,63638.0,63637.0,0.15002187]
[1724694147236,0.15617801,63638.0,63637.0,0.15002187]
[1724694147441,0.15817801,63638.0,63637.0,0.15002187]
[1724694148287,0.15917801,63638.0,63637.0,0.15002187]
[1724694148495,0.15917801,63638.0,63637.0,0.30716287]
[1724694148756,0.15917801,63638.0,63637.0,0.62144487]
[1724694149183,0.15917801,63638.0,63637.0,0.30716287]
[1724694149607,0.16967688,63638.0,63637.0,0.30716287]
[1724694149793,0.16967688,63638.0,63637.0,0.62144487]
[1724694150657,0.15917801,63638.0,63637.0,0.62144487]
[1724694151116,0.16967688,63638.0,63637.0,0.62144487]
[1724694151945,0.15917801,63638.0,63637.0,0.62144487]
[1724694152159,0.16967688,63638.0,63637.0,0.62144487]
[1724694152594,0.15917801,63638.0,63637.0,0.62144487]
[1724694152801,0.16967688,63638.0,63637.0,0.62144487]
[1724694153395,0.16000201,63638.0,63637.0,0.62144487]
[1724694153883,0.17050088,63638.0,63637.0,0.62144487]
[1724694154073,0.16000201,63638.0,63637.0,0.15002187]
[1724694154324,0.17050088,63638.0,63637.0,0.23906287]
[1724694154764,0.17050088,63638.0,63637.0,0.55334487]
[1724694155181,0.16000201,63638.0,63637.0,0.86762687]
[1724694155413,0.003824,63638.0,63637.0,0.86762687]
[1724694155628,0.003824,63638.0,63637.0,1.24970887]
[1724694155629,0.01444248,63638.0,63637.0,1.24970887]
[1724694155836,0.003824,63638.0,63637.0,1.24970887]
[1724694156292,0.001824,63638.0,63637.0,1.24970887]
[1724694156708,0.003824,63638.0,63637.0,1.56499087]
[1724694157121,0.001824,63638.0,63637.0,1.56499087]
[1724694157581,0.000824,63638.0,63637.0,1.56499087]
[1724694158411,0.001824,63638.0,63637.0,1.56899087]
[1724694158637,0.001824,63638.0,63637.0,2.00627287]
[1724694159096,0.002824,63638.0,63637.0,2.00627287]
[1724694159318,0.002824,63638.0,63637.0,1.69199087]
[1724694159521,0.001824,63638.0,63637.0,1.96543274]
[1724694159740,0.001824,63638.0,63637.0,1.96143274]
[1724694160186,0.001824,63638.0,63637.0,1.96543274]
[1724694160187,0.002824,63638.0,63637.0,1.96543274]
[1724694160403,0.001824,63638.0,63637.0,1.96543274]
[1724694160838,0.002824,63638.0,63637.0,1.96543274]
[1724694161044,0.001824,63638.0,63637.0,1.96143274]
[1724694162311,0.001824,63638.0,63637.0,1.97443274]
[1724694162312,0.002824,63638.0,63637.0,1.97443274]
[1724694167972,0.002824,63638.0,63637.0,1.95143274]
[1724694169706,0.002824,63638.0,63637.0,0.88062687]
[1724694169889,0.002824,63638.0,63637.0,0.79902687]
[1724694170743,0.002824,63638.0,63637.0,0.48474487]
[1724694171167,0.47327901,63638.0,63637.0,0.01332187]
[1724694171376,0.7919864,63638.0,63637.0,0.01332187]
[1724694171619,1.1052634,63638.0,63637.0,0.013]
[1724694171814,1.1052634,63638.0,63637.0,0.01332187]
[1724694172023,1.1062634,63638.0,63637.0,0.01332187]
[1724694172429,1.1052634,63638.0,63637.0,0.01332187]
[1724694172862,0.7969864,63638.0,63637.0,0.00032187]
[1724694173279,0.2427714,63638.0,63637.0,0.16546287]
[1724694173484,0.2427714,63638.0,63637.0,0.47174487]
[1724694173690,0.24272075,63638.0,63637.0,0.15746287]
[1724694173906,0.25072075,63638.0,63637.0,0.15846287]
[1724694174112,0.18392075,63638.0,63637.0,0.00132187]
[1724694174511,0.18392075,63638.0,63637.0,0.15846287]
[1724694175194,0.18392075,63638.0,63637.0,0.47274487]
[1724694176381,0.18392075,63638.0,63637.0,0.15846287]
[1724694177025,0.17492075,63638.0,63637.0,0.15746287]
[1724694177426,0.17992075,63638.0,63637.0,0.15846287]
[1724694177670,0.17992075,63638.0,63637.0,0.00132187]
[1724694177901,0.17292075,63638.0,63637.0,0.15846287]
[1724694178387,0.17692075,63638.0,63637.0,0.15846287]
[1724694178821,0.17692075,63638.0,63637.0,0.00132187]
[1724694179000,0.26072075,63638.0,63637.0,0.00132187]
[1724694180286,0.26072075,63638.0,63637.0,0.15846287]
[1724694180497,0.17692075,63638.0,63637.0,0.15846287]
[1724694180719,0.33405875,63638.0,63637.0,0.00132187]
[1724694181131,0.17692075,63638.0,63637.0,0.00132187]
[1724694181332,0.33405875,63638.0,63637.0,0.00132187]
[1724694181543,0.17692075,63638.0,63637.0,0.00132187]
[1724694182158,0.17692075,63638.0,63637.0,0.15846287]
[1724694182369,0.17692075,63638.0,63637.0,0.47274487]
[1724694182586,0.17692075,63638.0,63637.0,0.00132187]
[1724694182789,0.17692075,63638.0,63637.0,0.15846287]
[1724694184318,0.02074274,63638.0,63637.0,1.24480887]
[1724694184508,0.00977335,63638.0,63637.0,1.24480887]
[1724694185079,0.00577335,63638.0,63637.0,1.24480887]
[1724694185305,0.00077335,63638.0,63637.0,1.24380887]
[1724694185673,0.00477335,63638.0,63637.0,1.24380887]
[1724694186006,0.00077335,63638.0,63637.0,1.24380887]
[1724694186214,0.00077335,63638.0,63637.0,0.55124487]
[1724694186413,0.15695136,63638.0,63637.0,0.15746287]
[1724694186616,0.16295136,63638.0,63637.0,0.47274487]
[1724694186854,0.16772091,63638.0,63637.0,0.78602687]
[1724694187398,0.16872091,63638.0,63637.0,0.78602687]
[1724694188923,0.16872091,63638.0,63637.0,0.47174487]
[1724694189523,0.16872091,63638.0,63637.0,0.47265127]
[1724694190352,0.16872091,63638.0,63637.0,0.78693327]
[1724694193261,0.15795136,63638.0,63637.0,0.87173327]
[1724694194680,0.53472836,63638.0,63637.0,0.00122827]
[1724694194888,1.00614336,63638.0,63637.0,0.00122827]
[1724694195091,1.01694404,63638.0,63637.0,0.00122827]
[1724694195934,0.70266704,63638.0,63637.0,0.00122827]
[1724694196314,1.01694404,63638.0,63637.0,0.00122827]
[1724694196703,1.41172104,63638.0,63637.0,0.0009064]
[1724694198058,1.41872104,63638.0,63637.0,0.0009064]
[1724694198662,1.41172104,63638.0,63637.0,0.0009064]
[1724694198868,1.42172104,63638.0,63637.0,0.0009064]
[1724694199085,1.10644404,63638.0,63637.0,0.0009064]
[1724694199286,0.79216704,63638.0,63637.0,0.00122827]
[1724694199508,0.80316704,63638.0,63637.0,0.00222827]
[1724694199717,0.79216704,63638.0,63637.0,0.00122827]
[1724694199921,0.47789004,63638.0,63637.0,0.00122827]
[1724694200123,0.33889004,63638.0,63637.0,0.00222827]
[1724694200352,0.33889004,63638.0,63637.0,0.00122827]
[1724694200543,0.66616704,63638.0,63637.0,0.00122827]
[1724694200749,0.67716704,63638.0,63637.0,0.00222827]
[1724694200966,0.66416704,63638.0,63637.0,0.00222827]
[1724694201373,0.66416704,63638.0,63637.0,0.00322827]
[1724694201374,0.98844404,63638.0,63637.0,0.00322827]
[1724694201581,0.98844404,63638.0,63637.0,0.00222827]
[1724694201785,0.98844404,63638.0,63637.0,0.0019064]
[1724694201992,1.45092104,63638.0,63637.0,0.0019064]
[1724694202656,1.76519804,63638.0,63637.0,0.0019064]
[1724694207547,1.45092104,63638.0,63637.0,0.0019064]
[1724694213008,1.76519804,63638.0,63637.0,0.0019064]
[1724694213367,1.86519804,63638.0,63637.0,0.0019064]
[1724694213566,1.86500891,63638.0,63637.0,0.0019064]
[1724694213961,1.91455733,63638.0,63637.0,0.0019064]
[1724694214164,2.05621498,63638.0,63637.0,0.0019064]
[1724694214374,1.93918168,63638.0,63637.0,0.0019064]
[1724694215014,2.25345868,63638.0,63637.0,0.0019064]
[1724694217852,2.37034539,63638.0,63637.0,0.0019064]
[1724694218208,2.25345868,63638.0,63637.0,0.0019064]
[1724694219037,2.22883433,63638.0,63637.0,0.0019064]
[1724694219210,2.32231847,63638.0,63637.0,0.0019064]
[1724694220365,2.22883433,63638.0,63637.0,0.0019064]
[1724694220684,2.32230807,63638.0,63637.0,0.0019064]
[1724694221039,2.22883433,63638.0,63637.0,0.0019064]
[1724694221236,2.34572104,63638.0,63637.0,0.0019064]
[1724694221438,2.22883433,63638.0,63637.0,0.0019064]
[1724694222306,2.34565472,63638.0,63637.0,0.0019064]
[1724694222642,2.22883433,63638.0,63637.0,0.0019064]
[1724694223059,2.21883433,63638.0,63637.0,0.0019064]
[1724694223512,2.20783433,63638.0,63637.0,0.0009064]
[1724694223754,2.32590695,63638.0,63637.0,0.0019064]
[1724694223873,2.24646019,63638.0,63637.0,0.0019064]
[1724694224272,2.33990679,63638.0,63637.0,0.0019064]
[1724694224538,2.3399019,63638.0,63637.0,0.0019064]
[1724694224738,2.33970155,63638.0,63637.0,0.0019064]
[1724694225011,2.33970002,63638.0,63637.0,0.0019064]
[1724694225190,2.31634298,63638.0,63637.0,0.0019064]
[1724694228761,2.31566485,63638.0,63637.0,0.0019064]
[1724694229208,2.29103899,63638.0,63637.0,0.0019064]
[1724694230520,2.35404399,63638.0,63637.0,0.0019064]
[1724694230764,2.01676699,63638.0,63637.0,0.0019064]
[1724694231299,2.01677074,63638.0,63637.0,0.0019064]
[1724694232398,1.9934187,63638.0,63637.0,0.0019064]
[1724694232554,1.79848385,63638.0,63637.0,0.0019064]
[1724694232757,1.84521728,63638.0,63637.0,0.0019064]
[1724694232965,1.79848385,63638.0,63637.0,0.0019064]
[1724694233174,1.84512859,63638.0,63637.0,0.0019064]
[1724694233384,1.48411816,63638.0,63637.0,0.0019064]
[1724694234162,1.45611816,63638.0,63637.0,0.0009064]
[1724694234581,1.47011816,63638.0,63637.0,0.0009064]
[1724694234917,1.45611816,63638.0,63637.0,0.0009064]
[1724694235588,1.47011816,63638.0,63637.0,0.0009064]
[1724694236185,1.45611816,63638.0,63637.0,0.0009064]
[1724694236375,1.47011816,63638.0,63637.0,0.0009064]
[1724694237589,1.48411816,63638.0,63637.0,0.0009064]
[1724694239371,1.16984116,63638.0,63637.0,0.08622827]
[1724694239582,1.08096587,63638.0,63637.0,0.08522827]
[1724694239792,0.35241187,63638.0,63637.0,0.15022827]
[1724694240078,0.19527387,63638.0,63637.0,0.15022827]
[1724694240292,0.18127387,63638.0,63637.0,0.15022827]
[1724694240495,0.32441187,63638.0,63637.0,0.15022827]
[1724694240701,0.33841187,63638.0,63637.0,0.15022827]
[1724694240919,0.19527387,63638.0,63637.0,0.15022827]
[1724694241126,0.18127387,63638.0,63637.0,0.15022827]
[1724694241533,0.18827387,63638.0,63637.0,0.15022827]
[1724694241735,0.34541187,63638.0,63637.0,0.15022827]
[1724694242312,0.65968887,63638.0,63637.0,0.15022827]
[1724694242521,0.01809586,63638.0,63637.0,0.93907594]
[1724694242718,0.01809586,63638.0,63637.0,1.25335794]
[1724694242920,0.02509586,63638.0,63637.0,1.25335794]
[1724694243119,0.01429518,63638.0,63637.0,1.25335794]
[1724694243499,0.00729518,63638.0,63637.0,1.25335794]
[1724694243697,0.00029518,63638.0,63637.0,1.25335794]
[1724694243909,0.00329518,63638.0,63637.0,1.26352932]
[1724694244115,0.00629518,63638.0,63637.0,1.26352932]
[1724694244316,0.00329518,63638.0,63637.0,1.26352932]
[1724694244429,0.00393754,63638.0,63637.0,1.26352932]
[1724694244633,0.00493754,63638.0,63637.0,1.26452932]
[1724694245662,0.001,63638.0,63637.0,1.26452932]
[1724694245884,0.001,63638.0,63637.0,1.26138665]
[1724694246089,0.002,63638.0,63637.0,1.26438665]
[1724694247535,0.002824,63638.0,63637.0,1.26438665]
[1724694249002,0.002824,63638.0,63637.0,1.25421527]
[1724694250911,0.002824,63638.0,63637.0,1.56949727]
[1724694252088,0.002824,63638.0,63637.0,1.59249727]
[1724694254125,0.002824,63638.0,63637.0,1.52865714]
[1724694255402,0.002824,63638.0,63637.0,1.52765714]
[1724694256630,0.002824,63638.0,63637.0,1.86593914]
[1724694256886,0.002824,63638.0,63637.0,1.55165714]
[1724694257143,0.002824,63638.0,63637.0,1.86593914]
[1724694257634,0.002824,63638.0,63637.0,1.96593914]
[1724694268697,0.00263487,63638.0,63637.0,1.96593914]
[1724694271412,0.000824,63638.0,63637.0,1.96193914]
[1724694271891,0.001824,63638.0,63637.0,1.96393914]
[1724694272094,0.00132591,63638.0,63637.0,1.96393914]
[1724694272346,0.00132591,63638.0,63637.0,1.96493914]
[1724694272597,0.00132591,63638.0,63637.0,1.96393914]
[1724694272845,0.00232591,63638.0,63637.0,1.96693914]
[1724694274515,0.00232591,63638.0,63637.0,1.10621527]
[1724694275156,0.00232591,63638.0,63637.0,1.18911527]
[1724694275370,0.00232591,63638.0,63637.0,1.25381527]
[1724694275581,0.00032591,63638.0,63637.0,1.18411527]
[1724694275798,0.00132591,63638.0,63637.0,1.19411527]
[1724694276001,0.00132591,63638.0,63637.0,1.20411527]
[1724694279069,0.00132591,63638.0,63637.0,1.12121527]
[1724694279850,0.00132591,63638.0,63637.0,0.80693327]
[1724694280030,0.06492591,63638.0,63637.0,0.80693327]
[1724694280236,0.07585882,63638.0,63637.0,0.80693327]
[1724694280671,0.01225882,63638.0,63637.0,1.26891527]
[1724694280823,0.00132591,63638.0,63637.0,1.26891527]
[1724694288941,0.00132591,63638.0,63637.0,1.20071527]
[1724694290784,0.00132591,63638.0,63637.0,1.24779585]
[1724694290976,0.00132591,63638.0,63637.0,1.20071527]
[1724694291182,0.00132591,63638.0,63637.0,1.24783021]
[1724694291385,0.00132591,63638.0,63637.0,1.16833021]
[1724694291590,0.00132591,63638.0,63637.0,1.12121527]
[1724694291794,0.00132591,63638.0,63637.0,1.20211527]
[1724694292346,0.00132591,63638.0,63637.0,1.27278768]
[1724694292756,0.00132591,63638.0,63637.0,1.24923062]
[1724694292958,0.00132591,63638.0,63637.0,1.20211527]
[1724694293560,0.00132591,63638.0,63637.0,1.27278768]
[1724694294178,0.00132591,63638.0,63637.0,1.20211527]
[1724694294535,0.00132591,63638.0,63637.0,1.24923146]
[1724694294668,0.00132591,63638.0,63637.0,1.27278768]
[1724694295025,0.00132591,63638.0,63637.0,1.62126865]
[1724694295219,0.00132591,63638.0,63637.0,1.20211527]
[1724694296906,0.00132591,63638.0,63637.0,1.12121527]
[1724694297133,0.00132591,63638.0,63637.0,0.80693327]
[1724694297349,0.06712591,63638.0,63637.0,0.80693327]
[1724694300227,0.06712591,63638.0,63637.0,1.12121527]
[1724694300421,0.00132591,63638.0,63637.0,1.12121527]
[1724694301090,0.00132591,63638.0,63637.0,1.51509727]
[1724694301303,0.00132591,63638.0,63637.0,2.00044687]
[1724694301513,0.00132591,63638.0,63637.0,0.49265127]
[1724694301725,0.00132591,63638.0,63637.0,0.0209064]
[1724694301726,1.40730683,63638.0,63637.0,0.0209064]
[1724694301939,0.78584,63626.0,63625.0,0.00132187]
[1724694302157,0.89705485,63626.0,63625.0,0.00132187]
[1724694302367,0.84784304,63626.0,63625.0,0.00132187]
[1724694302574,0.80343998,63626.0,63625.0,0.00132187]
[1724694302794,0.83336492,63626.0,63625.0,0.00132187]
[1724694302998,1.10092897,63626.0,63625.0,0.00132187]
[1724694303204,0.78659297,63626.0,63625.0,0.00132187]
[1724694303436,0.31508897,63626.0,63625.0,0.00132187]
[1724694303842,0.47225697,63626.0,63625.0,0.00132187]
[1724694304057,0.78659297,63626.0,63625.0,0.00132187]
[1724694304259,0.79459297,63626.0,63625.0,0.00132187]
[1724694304466,0.79459297,63626.0,63625.0,0.00032187]
[1724694304694,0.79159297,63626.0,63625.0,0.00132187]
[1724694305126,0.79659297,63626.0,63625.0,0.00132187]
[1724694305762,0.48225697,63626.0,63625.0,0.00032187]
[1724694305994,0.48225697,63626.0,63625.0,0.00132187]
[1724694306217,0.17518897,63626.0,63625.0,0.47183287]
[1724694306453,0.01901096,63626.0,63625.0,0.47283287]
[1724694306678,0.01901096,63626.0,63625.0,0.47183287]
[1724694306883,0.01901096,63626.0,63625.0,0.15849187]
[1724694307093,0.01,63626.0,63625.0,0.47283287]
[1724694307302,0.0136676,63626.0,63625.0,0.00132187]
[1724694307507,0.0086676,63626.0,63625.0,0.15949187]
[1724694307710,0.15716,63630.0,63629.0,0.001]
[1724694307912,0.15617801,63630.0,63629.0,0.001]
[1724694308117,0.31333601,63630.0,63629.0,0.001]
[1724694308880,0.157164,63628.0,63627.0,0.00132187]
[1724694309206,0.15617801,63628.0,63627.0,0.00132187]
[1724694310969,0.15698888,63628.0,63627.0,0.00132187]
[1724694311180,0.15798888,63628.0,63627.0,0.00132187]
[1724694311490,0.31515188,63628.0,63627.0,0.00032187]
[1724694311685,0.31515188,63628.0,63627.0,0.00132187]
[1724694311894,0.23652888,63628.0,63627.0,0.00032187]
[1724694312300,0.23652888,63628.0,63627.0,0.00132187]
[1724694312630,0.70801888,63628.0,63627.0,0.00132187]
[1724694312831,1.10074588,63628.0,63627.0,0.00132187]
[1724694313271,0.78641888,63628.0,63627.0,0.00132187]
[1724694314130,0.78641888,63628.0,63627.0,0.00032187]
[1724694314361,0.78641888,63628.0,63627.0,0.00132187]
[1724694314559,0.78641888,63628.0,63627.0,0.00032187]
[1724694314731,0.78641888,63628.0,63627.0,0.00132187]
[1724694315602,0.78641888,63628.0,63614.0,0.381792]
[1724694315603,0.1447,63624.0,63621.0,0.00132187]
[1724694315836,0.471534,63622.0,63621.0,0.00132187]
[1724694316009,0.94206801,63622.0,63621.0,0.00132187]
[1724694316291,0.157183,63620.0,63619.0,0.00132187]
[1724694316515,0.94209301,63620.0,63619.0,0.00132187]
[1724694316749,1.40115901,63620.0,63619.0,0.00132187]
[1724694316979,0.616286,63615.0,63614.0,0.00132187]
[1724694317196,1.08685501,63615.0,63614.0,0.00132187]
[1724694317411,1.100386,63614.0,63613.0,0.00132187]
[1724694317686,1.40366401,63614.0,63613.0,0.00132187]
[1724694318104,1.100403,63613.0,63611.0,0.00132247]
[1724694318309,1.33528101,63613.0,63611.0,0.00132247]
[1724694318712,1.33528101,63613.0,63612.0,0.00222827]
[1724694318713,1.02088001,63613.0,63612.0,0.00222827]
[1724694320033,1.02888001,63613.0,63612.0,0.00222827]
[1724694321220,1.02888001,63613.0,63603.0,0.08774414]
[1724694321221,0.314407,63612.0,63603.0,0.08774414]
[1724694321437,0.157209,63610.0,63605.0,0.157218]
[1724694321786,0.31338901,63609.0,63605.0,0.157218]
[1724694322425,0.157213,63608.0,63604.0,0.157222]
[1724694322654,0.0839,63604.0,63601.0,0.009075]
[1724694322862,0.15617801,63604.0,63602.0,0.0848]
[1724694323068,0.00714335,63607.0,63606.0,0.471652]
[1724694323282,0.004,63609.0,63608.0,0.471637]
[1724694323477,0.008,63609.0,63608.0,1.100487]
[1724694323912,0.004,63609.0,63608.0,1.414912]
[1724694324114,0.004,63609.0,63608.0,1.566912]
[1724694324319,0.004,63609.0,63608.0,1.252487]
[1724694324867,0.157181,63621.0,63617.0,0.157188]
[1724694325174,0.15617801,63620.0,63618.0,0.157188]
[1724694325525,0.15617801,63620.0,63619.0,0.157185]
[1724694326458,0.16417801,63620.0,63619.0,0.157185]
[1724694326918,0.16417801,63620.0,63618.0,0.157187]
[1724694327278,0.16717801,63620.0,63619.0,0.157185]
[1724694327924,0.17017801,63620.0,63618.0,0.157188]
[1724694328272,0.17017801,63620.0,63618.0,0.157187]
[1724694328475,0.16717801,63620.0,63618.0,0.157187]
[1724694328679,0.32736101,63620.0,63617.0,0.157189]
[1724694328895,0.31636101,63620.0,63617.0,0.157189]
[1724694329102,0.31636101,63620.0,63616.0,0.157193]
[1724694329103,0.31936101,63620.0,63616.0,0.157193]
[1724694329254,0.461674,63619.0,63608.0,0.0009075]
[1724694329480,0.157194,63616.0,63608.0,0.0009075]
[1724694329658,0.31337201,63616.0,63612.0,0.157202]
[1724694330135,0.15721,63609.0,63608.0,0.0009075]
[1724694330365,0.62780801,63609.0,63608.0,0.0009075]
[1724694330567,1.02612801,63609.0,63608.0,0.0009075]
[1724694331845,1.02812801,63609.0,63608.0,0.0009075]
[1724694333321,1.40794801,63609.0,63608.0,0.0009075]
[1724694334952,1.09352801,63609.0,63608.0,0.0009075]
[1724694335386,1.40794801,63609.0,63608.0,0.0009075]
[1724694335545,1.09352801,63609.0,63608.0,0.0009075]
[1724694336139,1.40794801,63609.0,63608.0,0.0009075]
[1724694337178,1.72236801,63609.0,63608.0,0.0009075]
[1724694338000,1.73077057,63609.0,63608.0,0.0009075]
[1724694338213,1.72877057,63609.0,63608.0,0.0009075]
[1724694338421,1.41835057,63609.0,63608.0,0.0009075]
[1724694338625,1.42235057,63609.0,63608.0,0.0009075]
[1724694339058,1.73677057,63609.0,63608.0,0.0009075]
[1724694339259,1.42235057,63609.0,63608.0,0.0009075]
[1724694339669,1.73677057,63609.0,63608.0,0.0009075]
[1724694340701,1.72877057,63609.0,63608.0,0.0009075]
[1724694340878,1.72959557,63609.0,63608.0,0.0009075]
[1724694341083,1.75059557,63609.0,63608.0,0.0009075]
[1724694343515,1.90672725,63609.0,63608.0,0.0009075]
[1724694343688,2.46532416,63609.0,63608.0,0.0009075]
[1724694344093,2.4899588,63609.0,63608.0,0.0009075]
[1724694344321,2.53645195,63609.0,63608.0,0.0009075]
[1724694344479,2.4799588,63609.0,63608.0,0.0009075]
[1724694344697,2.62609048,63609.0,63608.0,0.0009075]
[1724694344913,2.62609048,63609.0,63604.0,5e-07]
[1724694344914,1.88452,63605.0,63604.0,5e-07]
[1724694345107,2.15955103,63605.0,63604.0,5e-07]
[1724694345308,2.1768755,63605.0,63604.0,5e-07]
[1724694345508,2.5143155,63605.0,63604.0,5e-07]
[1724694345716,2.67044718,63605.0,63604.0,5e-07]
[1724694346113,2.76362401,63605.0,63604.0,5e-07]
[1724694346313,2.75429874,63605.0,63604.0,5e-07]
[1724694347479,2.77762401,63605.0,63604.0,5e-07]
[1724694347680,2.68444718,63605.0,63604.0,5e-07]
[1724694348012,2.80090477,63605.0,63604.0,5e-07]
[1724694348214,2.8148826,63605.0,63604.0,5e-07]
[1724694348394,1.817802,63602.0,63601.0,0.0040755]
[1724694348604,2.50964385,63602.0,63601.0,0.0040755]
[1724694348803,2.78785437,63602.0,63601.0,0.0040755]
[1724694349389,2.85769184,63602.0,63601.0,0.0040755]
[1724694349590,2.83439467,63602.0,63601.0,0.0040755]
[1724694349718,2.84839467,63602.0,63601.0,0.0040755]
[1724694349924,2.80185437,63602.0,63601.0,0.0040755]
[1724694350324,2.81585437,63602.0,63601.0,0.0040755]
[1724694352526,2.84049368,63602.0,63601.0,0.0040755]
[1724694353411,2.199122,63600.0,63599.0,1.8782875]
[1724694353623,2.83443169,63600.0,63599.0,0.95948218]
[1724694353887,2.84451078,63600.0,63599.0,0.95948218]
[1724694354174,2.84451078,63600.0,63599.0,0.68526144]
[1724694354175,3.05661536,63600.0,63599.0,0.68526144]
[1724694354281,4.30020642,63600.0,63599.0,0.49876744]
[1724694354542,4.27431378,63600.0,63599.0,0.40442644]
[1724694354773,4.27431378,63600.0,63599.0,0.31762644]
[1724694354774,4.35765845,63600.0,63599.0,0.31762644]
[1724694354984,4.37165845,63600.0,63599.0,0.31762644]
[1724694355381,4.37165845,63600.0,63599.0,0.22328544]
[1724694355660,4.42928407,63600.0,63599.0,0.16039144]
[1724694355860,4.41528407,63600.0,63599.0,0.16039144]
[1724694356353,4.31612455,63600.0,63599.0,0.06605044]
[1724694356561,4.31612455,63600.0,63599.0,0.00315644]
[1724694356562,4.38547349,63600.0,63599.0,0.00315644]
[1724694356704,4.45516624,63600.0,63599.0,0.00315644]
[1724694357120,4.38547349,63600.0,63599.0,0.00315644]
[1724694357319,4.38547349,63600.0,63599.0,4.4e-07]
[1724694357519,3.84063349,63600.0,63599.0,4.4e-07]
[1724694357681,3.91031739,63600.0,63599.0,4.4e-07]
[1724694358062,4.61031739,63600.0,63599.0,4.4e-07]
[1724694358403,4.61031739,63600.0,63586.0,7.4e-07]
[1724694358404,0.15882558,63587.0,63586.0,7.4e-07]
[1724694358605,1.29970346,63587.0,63586.0,7.4e-07]
[1724694358808,2.03871467,63587.0,63586.0,7.4e-07]
[1724694359031,2.75887449,63587.0,63586.0,7.4e-07]
[1724694359387,2.73422723,63587.0,63586.0,7.4e-07]
[1724694359592,2.84690435,63587.0,63586.0,7.4e-07]
[1724694359810,2.90435891,63587.0,63586.0,7.4e-07]